fUSD/lending_fUSD_20251222
["ID","MTS","AMOUNT","RATE_DAILY","PERIOD"]
[399462887,1766377842835,-1801.22,0.00015835,2]
[399462888,1766377842844,-1600.0,0.00015862,2]
[399462889,1766377842854,-166.66,0.0001588,2]
[399462890,1766377842863,-500.0,0.00015925,2]
[399462891,1766377842872,-1490.09817043,0.0001599,2]
[399462892,1766377842882,-151.0,0.00015997,2]
[399462893,1766377842891,-23722.5581067,0.00016,2]
[399462894,1766377842900,-381.44303006,0.00016,2]
[399462895,1766377842909,-528957.01514871,0.00016,4]
[399462896,1766377842918,-6253.3,0.00016003,2]
[399462897,1766377842927,-500.0,0.00016098,2]
[399462898,1766377842935,-1801.22,0.00016108,2]
[399462899,1766377842944,-1252.0,0.00016153,2]
[399462900,1766377842953,-28914.38843061,0.00016166,2]
[399462901,1766377842962,-352.88004125,0.00016178,2]
[399462902,1766377842971,-8304.96137707,0.000162,5]
[399462903,1766377842980,-1000.0,0.00016252,2]
[399462904,1766377842988,-1000.0,0.00016252,2]
[399462905,1766377842997,-1000.0,0.00016252,2]
[399462906,1766377843006,-743.412,0.00016252,2]
[399462907,1766377843015,-1152.0,0.00016276,2]
[399462908,1766377843024,-500.0,0.00016329,2]
[399462909,1766377843033,-4609.0,0.00016353,2]
[399462910,1766377843042,-500.0,0.00016372,2]
[399462911,1766377843051,-1801.22,0.00016382,2]
[399462912,1766377843059,-353.92874992,0.00016383,2]
[399462913,1766377843068,-1831.2933,0.00016383,2]
[399462914,1766377843077,-3000.0,0.00016383,2]
[399462915,1766377843086,-190.01,0.00016435,2]
[399462916,1766377843095,-500.0,0.00016437,2]
[399462917,1766377843104,-500.0,0.00016437,2]
[399462918,1766377843113,-373.89365293,0.00016437,2]
[399462919,1766377843122,-500.0,0.00016437,2]
[399462920,1766377843132,-500.0,0.00016437,2]
[399462921,1766377843141,-513.1625593,0.00016437,2]
[399462922,1766377843150,-500.0,0.00016437,2]
[399462923,1766377843159,-500.0,0.00016437,2]
[399462924,1766377843169,-500.0,0.00016437,2]
[399462925,1766377843178,-500.0,0.00016437,2]
[399462926,1766377843188,-500.0,0.00016437,2]
[399462927,1766377843197,-500.0,0.00016437,2]
[399462928,1766377843206,-500.0,0.00016437,2]
[399462929,1766377843215,-500.0,0.00016437,2]
[399462930,1766377843224,-500.0,0.00016437,2]
[399462931,1766377843234,-929.933,0.00016438,2]
[399462932,1766377843243,-1995.62119315,0.00016438,2]
[399462933,1766377843252,-1995.62119315,0.00016438,2]
[399462934,1766377843262,-1995.62119315,0.00016438,2]
[399462935,1766377843271,-1995.62119315,0.00016438,2]
[399462936,1766377843281,-1995.62119315,0.00016438,2]
[399462937,1766377843290,-1995.62119315,0.00016438,2]
[399462938,1766377843299,-1995.62119315,0.00016438,2]
[399462939,1766377843309,-1995.62119315,0.00016438,2]
[399462940,1766377843318,-1995.62119315,0.00016438,2]
[399462942,1766377843328,-1995.62119315,0.00016438,2]
[399462945,1766377843337,-1995.62119315,0.00016438,2]
[399462947,1766377843347,-1995.62119315,0.00016438,2]
[399462949,1766377843356,-1995.62119315,0.00016438,2]
[399462951,1766377843365,-1995.62119315,0.00016438,2]
[399462953,1766377843375,-1995.62119315,0.00016438,2]
[399462954,1766377843384,-1995.62119315,0.00016438,2]
[399462955,1766377843393,-1995.62119315,0.00016438,2]
[399462956,1766377843403,-1995.62119315,0.00016438,2]
[399462957,1766377843413,-1995.62119315,0.00016438,2]
[399462958,1766377843423,-1995.62119315,0.00016438,2]
[399462959,1766377843433,-1995.62119315,0.00016438,2]
[399462960,1766377843443,-1995.62119315,0.00016438,2]
[399462961,1766377843452,-1995.62119315,0.00016438,2]
[399462962,1766377843462,-1995.62119315,0.00016438,2]
[399462963,1766377843471,-1995.62119315,0.00016438,2]
[399462964,1766377843482,-1995.62119315,0.00016438,2]
[399462965,1766377843498,-1995.62119315,0.00016438,2]
[399462966,1766377843508,-1995.62119315,0.00016438,2]
[399462967,1766377843519,-1995.62119315,0.00016438,2]
[399462968,1766377843528,-1995.62119315,0.00016438,2]
[399462969,1766377843541,-1995.62119315,0.00016438,2]
[399462970,1766377843559,-1995.62119315,0.00016438,2]
[399462971,1766377843569,-1995.62119315,0.00016438,2]
[399462972,1766377843580,-1995.62119315,0.00016438,2]
[399462973,1766377843589,-1995.62119315,0.00016438,2]
[399462974,1766377843599,-1995.62119315,0.00016438,2]
[399462975,1766377843607,-1995.62119315,0.00016438,2]
[399462976,1766377843618,-1995.62119315,0.00016438,2]
[399462977,1766377843627,-1995.62119315,0.00016438,2]
[399462978,1766377843637,-1995.62119315,0.00016438,2]
[399462979,1766377843646,-1995.62119315,0.00016438,2]
[399462980,1766377843657,-1995.62119315,0.00016438,2]
[399462981,1766377843667,-1995.62119315,0.00016438,2]
[399462982,1766377843677,-1995.62119315,0.00016438,2]
[399462983,1766377843686,-1995.62119315,0.00016438,2]
[399462984,1766377843696,-1995.62119315,0.00016438,2]
[399462985,1766377843705,-1995.62119315,0.00016438,2]
[399462986,1766377843714,-1995.62119315,0.00016438,2]
[399462987,1766377843724,-1995.62119315,0.00016438,2]
[399462988,1766377843733,-1995.62119315,0.00016438,2]
[399462989,1766377843742,-1995.62119315,0.00016438,2]
[399462990,1766377843752,-1995.62119315,0.00016438,2]
[399462991,1766377843761,-1995.62119315,0.00016438,2]
[399462992,1766377843771,-1995.62119315,0.00016438,2]
[399462993,1766377843781,-1995.62119315,0.00016438,2]
[399462994,1766377843791,-1995.62119315,0.00016438,2]
[399462995,1766377843801,-1995.62119315,0.00016438,2]
[399462997,1766377843811,-1995.62119315,0.00016438,2]
[399462998,1766377843820,-1995.62119315,0.00016438,2]
[399463000,1766377843829,-1995.62119315,0.00016438,2]
[399463002,1766377843839,-1995.62119315,0.00016438,2]
[399463003,1766377843848,-1975.66498123,0.00016438,2]
[399463004,1766377843858,-1975.66498123,0.00016438,2]
[399463005,1766377843867,-1975.66498123,0.00016438,2]
[399463006,1766377843877,-1975.66498123,0.00016438,2]
[399463007,1766377843888,-1975.66498123,0.00016438,2]
[399463008,1766377843898,-1975.66498123,0.00016438,2]
[399463009,1766377843909,-1975.66498123,0.00016438,2]
[399463010,1766377843920,-1975.66498123,0.00016438,2]
[399463011,1766377843929,-1975.66498123,0.00016438,2]
[399463012,1766377843938,-1975.66498123,0.00016438,2]
[399463013,1766377843949,-1975.66498123,0.00016438,2]
[399463014,1766377843960,-1975.66498123,0.00016438,2]
[399463015,1766377843970,-1975.66498123,0.00016438,2]
[399463016,1766377843980,-1975.66498123,0.00016438,2]
[399463017,1766377843989,-1975.66498123,0.00016438,2]
[399463018,1766377843999,-1975.66498123,0.00016438,2]
[399463019,1766377844008,-1975.66498123,0.00016438,2]
[399463020,1766377844018,-1975.66498123,0.00016438,2]
[399463021,1766377844027,-1975.66498123,0.00016438,2]
[399463022,1766377844036,-1975.66498123,0.00016438,2]
[399463023,1766377844047,-1975.66498123,0.00016438,2]
[399463024,1766377844056,-1975.66498123,0.00016438,2]
[399463025,1766377844067,-1975.66498123,0.00016438,2]
[399463026,1766377844078,-1975.66498123,0.00016438,2]
[399463027,1766377844088,-1975.66498123,0.00016438,2]
[399463028,1766377844097,-1975.66498123,0.00016438,2]
[399463029,1766377844108,-1975.66498123,0.00016438,2]
[399463030,1766377844117,-1975.66498123,0.00016438,2]
[399463031,1766377844126,-1975.66498123,0.00016438,2]
[399463032,1766377844136,-277.18,0.00016438,2]
[399463033,1766377844145,-800.66640866,0.00016438,2]
[399463034,1766377844155,-5408.0,0.00016457,2]
[399463035,1766377844164,-500.0,0.00016473,2]
[399463036,1766377844173,-500.84493932,0.00016473,2]
[399463037,1766377844183,-500.53011343,0.00016473,2]
[399463038,1766377844192,-500.63864721,0.00016473,2]
[399463039,1766377844202,-500.0,0.00016473,2]
[399463040,1766377844211,-500.0,0.00016473,2]
[399463041,1766377844221,-500.94017287,0.00016473,2]
[399463042,1766377844230,-500.0,0.00016473,2]
[399463043,1766377844239,-500.23459526,0.00016473,2]
[399463044,1766377844248,-500.89063362,0.00016473,2]
[399463045,1766377844258,-500.88851044,0.00016473,2]
[399463046,1766377844268,-500.5380025,0.00016473,2]
[399463047,1766377844277,-500.92519729,0.00016473,2]
[399463048,1766377844287,-500.59656143,0.00016473,2]
[399463049,1766377844296,-500.25404697,0.00016473,2]
[399463050,1766377844305,-162.4264826,0.00016473,2]
[399463051,1766377844314,-570.44343091,0.00016473,2]
[399463052,1766377844324,-500.71610448,0.00016473,2]
[399463053,1766377844333,-500.85006285,0.00016473,2]
[399463054,1766377844343,-500.0,0.00016473,2]
[399463055,1766377844353,-334.69874754,0.00016473,2]
[399463056,1766377844362,-556.12570782,0.00016473,2]
[399463057,1766377844372,-500.89704022,0.00016473,2]
[399463058,1766377844382,-500.93365607,0.00016473,2]
[399463059,1766377844391,-500.14110793,0.00016473,2]
[399463060,1766377844400,-639.90034145,0.00016473,2]
[399463061,1766377844410,-500.0,0.00016473,2]
[399463062,1766377844419,-500.364387,0.00016473,2]
[399463063,1766377844428,-500.0,0.00016473,2]
[399463064,1766377844436,-500.23431497,0.00016473,2]
[399463065,1766377844447,-500.0,0.00016473,2]
[399463066,1766377844456,-160.23136935,0.00016473,2]
[399463067,1766377844465,-500.76356067,0.00016473,2]
[399463068,1766377844475,-500.84177563,0.00016473,2]
[399463069,1766377844484,-500.26932841,0.00016473,2]
[399463070,1766377844496,-160.23033873,0.00016473,2]
[399463071,1766377844506,-519.00415051,0.00016473,2]
[399463072,1766377844519,-500.0,0.00016473,2]
[399463073,1766377844528,-500.0,0.00016473,2]
[399463074,1766377844537,-500.0,0.00016473,2]
[399463075,1766377844546,-500.0,0.00016473,2]
[399463076,1766377844556,-500.0,0.00016473,2]
[399463077,1766377844565,-500.0,0.00016473,2]
[399463078,1766377844574,-500.0,0.00016473,2]
[399463079,1766377844583,-500.0,0.00016473,2]
[399463080,1766377844593,-500.0,0.00016473,2]
[399463081,1766377844603,-500.0,0.00016473,2]
[399463082,1766377844612,-566.05199029,0.00016473,2]
[399463083,1766377844620,-500.0,0.00016473,2]
[399463084,1766377844629,-500.0,0.00016473,2]
[399463085,1766377844637,-500.19873097,0.00016473,2]
[399463086,1766377844645,-500.40105858,0.00016473,2]
[399463087,1766377844654,-500.23422882,0.00016473,2]
[399463088,1766377844662,-500.0,0.00016473,2]
[399463089,1766377844671,-500.4866391,0.00016473,2]
[399463090,1766377844680,-500.28027426,0.00016473,2]
[399463091,1766377844689,-182.65808094,0.00016473,2]
[399463092,1766377844698,-160.22953204,0.00016473,2]
[399463093,1766377844707,-500.23816043,0.00016473,2]
[399463094,1766377844717,-160.22398459,0.00016473,2]
[399463095,1766377844727,-150.2134934,0.00016473,2]
[399463096,1766377844736,-500.31559723,0.00016473,2]
[399463097,1766377844745,-500.0,0.00016473,2]
[399463098,1766377844754,-500.0,0.00016473,2]
[399463099,1766377844763,-160.22953259,0.00016473,2]
[399463100,1766377844772,-500.0,0.00016473,2]
[399463101,1766377844781,-500.69670875,0.00016473,2]
[399463102,1766377844790,-500.0,0.00016473,2]
[399463103,1766377844799,-500.47037435,0.00016473,2]
[399463104,1766377844810,-500.0,0.00016473,2]
[399463105,1766377844819,-5408.0,0.00016476,2]
[399463106,1766377844830,-28914.38843061,0.00016533,2]
[399463107,1766377844839,-237.4,0.00016617,2]
[399463108,1766377844848,-1604.0,0.00016641,2]
[399463109,1766377844860,-359.51458071,0.00016646,2]
[399463110,1766377844870,-1801.22,0.00016656,2]
[399463111,1766377844879,-1604.0,0.00016665,2]
[399463112,1766377844888,-1604.0,0.00016699,2]
[399463113,1766377844898,-1050.21920627,0.000167,2]
[399463114,1766377844907,-162.14,0.00016719,2]
[399463115,1766377844915,-1604.0,0.00016784,2]
[399463116,1766377844924,-201.47691223,0.00016788,2]
[399463117,1766377844933,-1604.0,0.00016813,2]
[399463118,1766377844942,-1002.5,0.00016816,2]
[399463119,1766377844951,-200.0,0.00016864,2]
[399463120,1766377844960,-500.0,0.00016896,2]
[399463121,1766377844969,-5408.0,0.00016897,2]
[399463122,1766377844978,-10000.0,0.000169,2]
[399463123,1766377844987,-352.88004125,0.000169,2]
[399463124,1766377844997,-272.20622186,0.000169,2]
[399463125,1766377845006,-2369.16257975,0.000169,2]
[399463126,1766377845015,-256.92797377,0.000169,2]
[399463127,1766377845025,-28914.38843061,0.000169,2]
[399463128,1766377845033,-5579.05537713,0.000169,2]
[399463129,1766377845042,-5408.0,0.00016906,2]
[399463130,1766377845051,-1411.68011212,0.00016913,2]
[399463131,1766377845060,-1801.22,0.0001693,2]
[399463132,1766377845070,-736.82314427,0.00016931,2]
[399463133,1766377845080,-5408.0,0.00016937,2]
[399463134,1766377845089,-304.0,0.00016959,2]
[399463135,1766377845098,-1940.3239651,0.00016967,2]
[399463136,1766377845107,-150.0,0.00016973,2]
[399463137,1766377845117,-151.0,0.0001699,2]
[399463138,1766377845127,-500.0,0.0001699,2]
[399463139,1766377845136,-500.0,0.0001699,2]
[399463140,1766377845146,-500.0,0.0001699,2]
[399463141,1766377845155,-500.0,0.0001699,2]
[399463142,1766377845166,-1490.09817043,0.0001699,2]
[399463143,1766377845176,-1490.09817043,0.0001699,2]
[399463144,1766377845185,-500.0,0.00016992,2]
[399463145,1766377845195,-451.43777448,0.00016992,2]
[399463146,1766377845204,-4537.7158926,0.00016993,2]
[399463147,1766377845213,-651329.5846559,0.00016993,2]
[399463148,1766377845232,-7754.71640532,0.00016993,2]
[399463149,1766377845243,-3662.85766058,0.00016993,2]
[399463150,1766377845254,-364.74739023,0.00016993,2]
[399463151,1766377845266,-542.46609112,0.00016993,2]
[399463152,1766377845286,-1653.44350462,0.00016893,2]
[399463153,1766377845295,-154162.90998155,0.00016993,2]
[399463154,1766377845306,-32633.9999999,0.00016993,2]
[399463155,1766377845456,-178.39542275,0.00012514,2]
[399463156,1766377845466,-552.3873001,0.00012514,2]
[399463157,1766377845475,-1653.44350458,0.00016894,2]
[399463158,1766377845484,-1653.44350458,0.00016896,2]
[399463159,1766377845494,-1653.44350458,0.00016897,2]
[399463160,1766377845504,-1653.44350458,0.00016899,2]
[399463161,1766377845516,-1653.44350458,0.000169,2]
[399463162,1766377845528,-102403.9517046,0.00016993,2]
[399463163,1766377845539,-3403.2869194,0.00016993,2]
[399463164,1766377845559,-10209.8607583,0.00016993,2]
[399463165,1766377845571,-68820.5166677,0.00016993,2]
[399463166,1766377845580,-153.202067,0.00016993,2]
[399463167,1766377845589,-923.667673,0.00016993,2]
[399463168,1766377845600,-923.667673,0.00016993,2]
[399463169,1766377845609,-923.667673,0.00016993,2]
[399463170,1766377845618,-923.667673,0.00016993,2]
[399463171,1766377845627,-151.0,0.00016993,2]
[399463172,1766377845636,-151.0,0.00016993,2]
[399463173,1766377845645,-151.0,0.00016993,2]
[399463174,1766377845654,-151.0,0.00016993,2]
[399463175,1766377845663,-151.0,0.00016993,2]
[399463176,1766377845673,-151.0,0.00016993,2]
[399463177,1766377845685,-151.0,0.00016993,2]
[399463178,1766377845695,-261.497182,0.00016993,2]
[399463179,1766377845705,-151.0,0.00016993,2]
[399463180,1766377845714,-151.0,0.00016993,2]
[399463181,1766377845723,-151.0,0.00016993,2]
[399463182,1766377845732,-151.0,0.00016993,2]
[399463183,1766377845741,-151.0,0.00016993,2]
[399463184,1766377845750,-151.0,0.00016997,2]
[399463185,1766377845759,-500.0,0.00016998,2]
[399463186,1766377845769,-359.86568137,0.00016998,2]
[399463187,1766377845778,-500.0,0.00016998,2]
[399463188,1766377845787,-500.0,0.00016998,2]
[399463189,1766377845797,-500.0,0.00016998,2]
[399463190,1766377845807,-500.0,0.00016998,2]
[399463191,1766377845817,-500.0,0.00016998,2]
[399463192,1766377845826,-500.0,0.00016998,2]
[399463193,1766377845835,-500.0,0.00016998,2]
[399463194,1766377845845,-500.0,0.00016998,2]
[399463195,1766377845854,-500.0,0.00016999,2]
[399463196,1766377845863,-500.0,0.00016999,2]
[399463197,1766377845872,-500.0,0.00016999,2]
[399463198,1766377845881,-1230.57350397,0.00016999,5]
[399463199,1766377845891,-1230.57350397,0.00016999,5]
[399463200,1766377845900,-517.20935872,0.00016999,2]
[399463201,1766377845910,-500.0,0.00016999,2]
[399463202,1766377845920,-500.0,0.00016999,2]
[399463203,1766377845929,-500.0,0.00016999,2]
[399463205,1766377846155,-349.26999972,0.00016999,2]
[399463207,1766377846165,-500.0,0.00016999,2]
[399463209,1766377846175,-500.0,0.00016999,2]
[399463210,1766377846184,-557.08917325,0.00016999,2]
[399463212,1766377846194,-500.0,0.00016999,2]
[399463213,1766377846204,-507.5550191,0.00016999,2]
[399463214,1766377846213,-500.0,0.00016999,2]
[399463215,1766377846222,-508.44264372,0.00016999,2]
[399463216,1766377846232,-522.793359,0.00016999,2]
[399463217,1766377846241,-535.91773514,0.00016999,2]
[399463218,1766377846250,-500.0,0.00016999,2]
[399463219,1766377846260,-500.0,0.00016999,2]
[399463220,1766377846269,-500.0,0.00016999,2]
[399463221,1766377846279,-300.0,0.00016999,2]
[399463222,1766377846289,-666.0,0.00016999,2]
[399463223,1766377846299,-300.0,0.00016999,2]
[399463224,1766377846309,-2922256.48203897,0.00017,2]
[399463225,1766377846319,-2401520.27197638,0.00017,2]
[399463226,1766377846328,-250.0,0.00017,2]
[399463227,1766377846338,-200.0,0.00017,2]
[399463228,1766377846348,-151.0,0.00017,2]
[399463229,1766377846357,-161.77928511,0.00017,2]
[399463230,1766377846367,-151.0,0.00017,2]
[399463231,1766377846376,-151.0,0.00017,2]
[399463232,1766377846385,-152.942767,0.00017,2]
[399463233,1766377846394,-200.0,0.00017,2]
[399463234,1766377846403,-151.0,0.00017,2]
[399463235,1766377846413,-151.0,0.00017,2]
[399463236,1766377846422,-151.0,0.00017,2]
[399463237,1766377846431,-151.0,0.00017,2]
[399463238,1766377846441,-243.494433,0.00017,2]
[399463239,1766377846450,-151.0,0.00017,2]
[399463240,1766377846459,-151.0,0.00017,2]
[399463241,1766377846468,-950322.99130699,0.00017,2]
[399463242,1766377846480,-144444.48410535,0.00017,2]
[399463243,1766377846495,-725.91164319,0.00017,2]
[399463244,1766377846506,-3238319.37198497,0.00017,2]
[399463245,1766377846521,-324.4526,0.00017,2]
[399463246,1766377846535,-258.39013124,0.00017,2]
[399463247,1766377846677,-15224.54846544,0.00017,2]
[399463248,1766377846696,-507.24097996,0.00017,2]
[399463249,1766377846717,-313717.5829489,0.00017,2]
[399463251,1766377846921,-68565.51761213,0.00017,2]
[399463252,1766377846933,-356.15737124,0.00017,2]
[399463253,1766377846965,-87120.868877,0.00017,2]
[399463254,1766377847165,-142.65023149,0.00017,2]
[399463258,1766378238222,162.99071537,0.00011,2]
[399464003,1766379031432,-1000.0,0.00012514,2]
[399464004,1766379031442,-300.0,0.00012532,2]
[399464005,1766379031452,-300.0,0.0001255,2]
[399464006,1766379031462,-300.0,0.00012704,2]
[399464007,1766379031471,-300.0,0.00012971,2]
[399464008,1766379031480,-1200.0,0.00012971,2]
[399464009,1766379031490,-150.0,0.00012971,2]
[399464010,1766379031500,-40172.51217542,0.00012972,2]
[399464011,1766379031510,-259.11,0.00012972,2]
[399464012,1766379031522,-704.890961,0.00012972,2]
[399464013,1766379031532,-593.68559843,0.00012972,2]
[399464015,1766379031547,-5569.82902229,0.00012972,2]
[399464034,1766379038013,-825.13,0.00012972,2]
[399464035,1766379039656,-3097.71224286,0.00012972,2]
[399464036,1766379039666,-150.0,0.00013158,2]
[399464037,1766379039675,-19978.61,0.00013159,2]
[399464038,1766379039684,-1852.42,0.00013452,2]
[399464039,1766379039694,-1500.0,0.00013465,2]
[399464040,1766379039703,-200.0,0.00013534,2]
[399464041,1766379039711,-8089.52833445,0.00013665,2]
[399464042,1766379039720,-717.1347316,0.00013665,2]
[399464043,1766379039729,-500.0,0.00013698,2]
[399464044,1766379039738,-522.793359,0.00013698,2]
[399464045,1766379039747,-535.91773514,0.00013698,2]
[399464046,1766379039756,-500.0,0.00013698,2]
[399464047,1766379039765,-500.0,0.00013698,2]
[399464048,1766379039774,-1000.0,0.00013699,2]
[399464049,1766379039783,-151.33,0.00013699,2]
[399464050,1766379039792,-521.24628006,0.00013699,2]
[399464051,1766379039800,-386.67111007,0.00013699,2]
[399464052,1766379039809,-299.99,0.000137,2]
[399464053,1766379039817,-150.99,0.000137,2]
[399464054,1766379039826,-9999.99,0.000137,2]
[399464055,1766379039835,-620.44,0.000137,2]
[399464056,1766379039844,-620.44,0.000137,2]
[399464057,1766379039852,-620.44,0.000137,2]
[399464058,1766379039861,-182.249,0.00013709,2]
[399464059,1766379039870,-160.3,0.00013709,2]
[399464060,1766379039879,-500.0,0.00013709,2]
[399464061,1766379039887,-500.0,0.00013709,2]
[399464062,1766379039896,-500.0,0.00013709,2]
[399464063,1766379039905,-358388.63082222,0.0001371,2]
[399464064,1766379039915,-300.0,0.00013765,2]
[399464065,1766379039924,-300.0,0.00013765,2]
[399464066,1766379039933,-300.0,0.00013765,2]
[399464067,1766379039942,-300.0,0.00013765,2]
[399464068,1766379039950,-300.0,0.00013765,2]
[399464069,1766379039959,-300.0,0.00013765,2]
[399464070,1766379039968,-300.0,0.00013765,2]
[399464071,1766379039977,-300.0,0.00013765,2]
[399464072,1766379039986,-300.0,0.00013765,2]
[399464073,1766379039998,-300.0,0.00013765,2]
[399464074,1766379040006,-300.0,0.00013765,2]
[399464075,1766379040015,-250.0,0.00013765,2]
[399464076,1766379040024,-300.0,0.00013765,2]
[399464077,1766379040034,-1172.38217764,0.00013765,4]
[399464078,1766379040043,-2500.0,0.00013765,2]
[399464079,1766379040052,-8089.52833438,0.00014024,2]
[399464080,1766379040062,-3240.0,0.00014189,2]
[399464081,1766379040073,-420.0,0.00014226,2]
[399464082,1766379040082,-255.0,0.00014264,2]
[399464083,1766379040091,-1680.0,0.00014268,2]
[399464084,1766379040100,-8089.52833438,0.00014384,2]
[399464085,1766379040109,-508.44264372,0.00014389,2]
[399464086,1766379040118,-500.0,0.00014389,2]
[399464087,1766379040127,-166.66,0.0001442,2]
[399464088,1766379040136,-620.44,0.00014449,2]
[399464089,1766379040145,-620.44,0.00014449,2]
[399464090,1766379040154,-151.0,0.00014456,2]
[399464091,1766379040163,-349.26999972,0.00014459,2]
[399464092,1766379040172,-500.0,0.00014459,2]
[399464093,1766379040181,-557.08917325,0.00014459,2]
[399464094,1766379040191,-507.5550191,0.00014459,2]
[399464095,1766379040200,-1000000.0,0.00014459,2]
[399464096,1766379040209,-1002.5937002,0.00014567,2]
[399464097,1766379040218,-10434.08,0.00014668,2]
[399464098,1766379040227,-441.38,0.00014711,2]
[399464099,1766379040237,-8089.52833438,0.00014743,2]
[399464100,1766379040246,-166.66,0.00014896,2]
[399464101,1766379040256,-152.61,0.00014909,2]
[399464102,1766379040265,-1000.0,0.0001503,2]
[399464103,1766379040275,-8089.52833438,0.00015103,2]
[399464104,1766379040284,-960.86156222,0.00015162,2]
[399464105,1766379040293,-151.0,0.0001536,2]
[399464106,1766379040303,-151.0,0.00015369,2]
[399464107,1766379040312,-166.66,0.00015373,2]
[399464108,1766379040321,-433.0,0.00015461,2]
[399464109,1766379040330,-8089.52833438,0.00015462,2]
[399464110,1766379040339,-500.0,0.00015493,2]
[399464111,1766379040348,-1130.93386594,0.00015588,2]
[399464112,1766379040357,-587.0,0.00015601,2]
[399464113,1766379040366,-2351.0,0.00015695,2]
[399464114,1766379040376,-1000.0,0.000157,2]
[399464115,1766379040385,-8089.52833438,0.00015822,2]
[399464116,1766379040395,-166.66,0.00015849,2]
[399464117,1766379040404,-305.64899447,0.0001586,2]
[399464118,1766379040413,-1285.79957615,0.00016062,2]
[399464119,1766379040422,-1626.9,0.00016149,2]
[399464120,1766379040431,-200.0,0.00016149,2]
[399464121,1766379040441,-207.4,0.00016149,2]
[399464122,1766379040450,-215.0738,0.00016149,2]
[399464123,1766379040459,-223.0315306,0.00016149,2]
[399464124,1766379040468,-231.28369723,0.00016149,2]
[399464125,1766379040479,-239.84119403,0.00016149,2]
[399464126,1766379040488,-248.71531821,0.00016149,2]
[399464127,1766379040497,-257.91778498,0.00016149,2]
[399464128,1766379040507,-267.46074303,0.00016149,2]
[399464129,1766379040516,-151.0,0.00016149,2]
[399464130,1766379040525,-156.587,0.00016149,2]
[399464131,1766379040535,-162.380719,0.00016149,2]
[399464132,1766379040544,-153.6660154,0.00016149,2]
[399464133,1766379040553,-151.0,0.00016149,2]
[399464134,1766379040562,-500.0,0.00016149,2]
[399464135,1766379040572,-352.57653345,0.00016149,2]
[399464136,1766379040581,-8089.52833438,0.00016181,2]
[399464137,1766379040591,-1000.0,0.00016276,2]
[399464138,1766379040600,-1000.0,0.00016276,2]
[399464139,1766379040609,-709.535,0.00016276,2]
[399464140,1766379040619,-1000.0,0.00016276,2]
[399464141,1766379040628,-166.66,0.00016325,2]
[399464142,1766379040638,-1000.0,0.00016383,2]
[399464143,1766379040648,-1626.9,0.00016423,2]
[399464144,1766379040657,-500.0,0.00016438,2]
[399464145,1766379040668,-500.0,0.00016438,2]
[399464146,1766379040677,-500.0,0.00016438,2]
[399464147,1766379040687,-500.0,0.00016438,2]
[399464148,1766379040696,-500.0,0.00016438,2]
[399464149,1766379040706,-500.0,0.00016438,2]
[399464150,1766379040715,-500.0,0.00016438,2]
[399464151,1766379040724,-500.0,0.00016438,2]
[399464152,1766379040733,-500.0,0.00016438,2]
[399464153,1766379040742,-500.0,0.00016438,2]
[399464154,1766379040751,-500.0,0.00016438,2]
[399464155,1766379040760,-500.0,0.00016438,2]
[399464156,1766379040769,-500.0,0.00016438,2]
[399464157,1766379040779,-500.0,0.00016438,2]
[399464158,1766379040788,-500.0,0.00016438,2]
[399464159,1766379040797,-500.0,0.00016438,2]
[399464160,1766379040806,-500.0,0.00016438,2]
[399464161,1766379040816,-500.0,0.00016438,2]
[399464162,1766379040824,-500.0,0.00016438,2]
[399464163,1766379040833,-500.0,0.00016438,2]
[399464164,1766379040843,-500.0,0.00016438,2]
[399464165,1766379040852,-500.0,0.00016438,2]
[399464166,1766379040862,-500.0,0.00016438,2]
[399464167,1766379040871,-500.0,0.00016438,2]